Cogmind - Beta 14 @@@ ROGUE MODE // 2024.09.01 @ 16:09:31 Player: Some Pennies Result: Destroyed by G-73 Enforcer with Heavy Laser Performance ------------- Evolutions (9) 4500 Regions Visited (29) 5800 Robots Destroyed (478) 2390 Value Destroyed (26639) 26639 Prototype IDs (87) 1740 Alien Tech Used (14) 2800 Bonus (18779) 18779 TOTAL SCORE: 62648 Bonus ------- Triggered High Security 1000 High Alert Combat Kills 8830 Follower Combat Kills 1022 Entered Garrisons 200 Met Imprinter 300 Destroyed Z-Imprinter 1000 Triggered Deep Caves Wall 500 Exposed GOLEM Chamber 500 Acquired ECA 300 Met Zhirov 300 Met Warlord at Base 500 MAIN.C Attacked Warlord 500 Warlord Defense Kills 120 Used Core Reset Matrix 3000 Met Warlord at Research 2000 Scanned by Researcher 500 Friendly Fire -1793 Cogmind --------- Core Integrity 0/1600 Matter 241/425 Energy 99/100 System Corruption 0% Temperature Cool (9) Movement Core (50) Location -1/Access Parts ------- > --- POWER (4) -------- (None) > --- PROPULSION (4) --- Gyrokinetic Inverter > --- UTILITY (14) ----- Experimental Terrain Scan Processor Spacefold Activator > --- WEAPON (3) ------- (None) > --- INVENTORY (5) ---- Micro Antimatter Reactor Experimental Core Analyzer Advanced Transmission Jammer Vortex Shotgun (28) Heavy Machine Gun Peak State ------------ > --- POWER ------------ Assembled Flux Generator Improved Quantum Reactor Improved Quantum Reactor > --- PROPULSION ------- Advanced Heavy Siege Treads Assembled Alloy Leg Assembled Alloy Leg > --- UTILITY ---------- Assembled Nanovents Huge Storage Unit Assembled Biocell Array Experimental Terrain Scan Processor Assembled Combat Suite Experimental Targeting Computer Assembled Alloy Armor Heavy Regenerative Plating Graphene Brace Thermal Barrier GOLEM Unit Spacefold Activator > --- WEAPON ----------- Assembled Focal Cannon Assembled Focal Cannon Assembled Focal Cannon > --- INVENTORY -------- Micro Antimatter Reactor Improved Quantum Reactor Experimental Heat Sink Zionite Biocell Zionite Biocell Zionite Biocell Experimental Matter Compressor Long-range Terrain Scanner Experimental Core Analyzer Advanced Transmission Jammer Improved Core Shielding Heavy Regenerative Plating Experimental EM Disruption Field Advanced Force Field High-powered Transdimensional Reconstructor Core Regenerator Integrity Redistributor Integrity Redistributor Vortex Shotgun Vortex Shotgun Heavy Machine Gun Hardcell Cannon Missile Launcher Power Sword [Rating: 234] Favorites ----------- Power Assembled Flux Generator Engine Reinforced Deuterium Engine Power Core Light Nuclear Core Reactor Assembled Flux Generator Propulsion Assembled Alloy Leg Treads Light Treads Leg Assembled Alloy Leg Wheel Compact Wheel Hover Unit Gyrokinetic Inverter Flight Unit Improved Cesium-ion Thruster Utility Huge Storage Unit Device GOLEM Unit Storage Huge Storage Unit Processor Core Analyzer Hackware Experimental System Shield Protection Assembled Alloy Armor Artifact Spacefold Activator Weapon Assembled Focal Cannon Energy Gun Medium Laser Energy Cannon Assembled Focal Cannon Ballistic Gun Enhanced Autogun Ballistic Cannon Hardcell Cannon Launcher Missile Launcher Special Weapon Plasma Cutter Impact Weapon Hammer Slashing Weapon Particle Cleaver Special Melee Weapon Datajack Build | -11 -10 -10 -10 -9 -8 -8 -8 -7 -6 -6 -6 -6 -6 -5 -5 -5 -5 -5 -4 -4 -4 -4 -4 -3 -3 -2 -2 -2 -1 ------- Run | Yrd Mat Min Exi Min Mat Gar Mat Fac Fac Low Low Zio Dee Pro Fac Upp Upp Zhi Pro Fac Upp Upp War Pro Res Res Qua Sec Acc Slots Evolved 18 | . . . . . 4 . . 2 2 . . . . . 2 . . . . 2 . . . . 2 2 . . 2 Power 3 | . . . . . . . . . 1 . . . . . . . . . . . . . . . 1 . . . 1 Propulsion 2 | . . . . . 2 . . . . . . . . . . . . . . . . . . . . . . . . Utility 12 | . . . . . 2 . . 2 1 . . . . . 2 . . . . 2 . . . . 1 1 . . 1 Weapon 1 | . . . . . . . . . . . . . . . . . . . . . . . . . . 1 . . . Parts Attached 544 | 3 14 2 4 2 4 30 35 28 22 17 . 22 76 6 17 11 5 18 3 27 7 2 8 5 17 25 15 69 50 Power 34 | . 2 . . . . 4 5 2 3 . . . 3 . . . . 1 . . . . . . 1 3 . 6 4 Engine 11 | . 2 . . . . 2 2 2 2 . . . 1 . . . . . . . . . . . . . . . . Core 7 | . . . . . . 2 3 . 1 . . . . . . . . . . . . . . . . . . . 1 Reactor 16 | . . . . . . . . . . . . . 2 . . . . 1 . . . . . . 1 3 . 6 3 Propulsion 66 | 2 2 . . . 2 5 9 6 3 1 . 1 11 1 3 . . 2 . 5 2 2 1 . 2 . . 4 2 Treads 52 | 2 2 . . . 2 2 5 5 3 1 . 1 7 1 3 . . 1 . 5 2 2 1 . 2 . . 4 1 Leg 6 | . . . . . . 3 1 . . . . . 2 . . . . . . . . . . . . . . . . Wheel 3 | . . . . . . . 3 . . . . . . . . . . . . . . . . . . . . . . Hover 3 | . . . . . . . . . . . . . 2 . . . . . . . . . . . . . . . 1 Flight 2 | . . . . . . . . 1 . . . . . . . . . 1 . . . . . . . . . . . Utility 329 | 1 3 1 2 . 2 2 5 13 11 10 . 13 35 4 14 11 5 15 3 20 5 . 6 5 14 21 15 56 37 Device 193 | 1 1 . 1 . 1 1 2 7 4 7 . 6 12 1 7 4 4 5 3 12 2 . 4 4 11 12 11 45 25 Storage 14 | . 2 1 1 . . . . . 1 . . . 2 . 1 2 . 2 . . . . 1 . . 1 . . . Processor 12 | . . . . . 1 . . 1 2 . . 3 . . . . . . . 1 . . . . . 2 . 1 1 Hackware 4 | . . . . . . . . . . . . . . . . . . . . 2 . . . . . 2 . . . Protection 94 | . . . . . . 1 3 5 4 3 . 4 21 3 6 5 1 8 . 5 3 . 1 1 3 4 4 6 3 Artifact 12 | . . . . . . . . . . . . . . . . . . . . . . . . . . . . 4 8 Weapon 115 | . 7 1 2 2 . 19 16 7 5 6 . 8 27 1 . . . . . 2 . . 1 . . 1 . 3 7 Energy Gun 33 | . 5 1 . 1 . 9 5 2 2 . . . 2 1 . . . . . . . . 1 . . . . . 4 Energy Cannon 35 | . . . . . . . 2 . 2 5 . 5 15 . . . . . . 2 . . . . . . . 1 3 Ballistic Gun 18 | . . . . 1 . 4 7 4 1 . . . . . . . . . . . . . . . . . . 1 . Ballistic Cannon 1 | . . . . . . . . . . . . . . . . . . . . . . . . . . . . 1 . Launcher 17 | . 2 . . . . 4 2 1 . 1 . 1 6 . . . . . . . . . . . . . . . . Special Weapon 3 | . . . . . . . . . . . . 2 1 . . . . . . . . . . . . . . . . Impact Weapon 5 | . . . 1 . . 1 . . . . . . 3 . . . . . . . . . . . . . . . . Slashing Weapon 1 | . . . . . . . . . . . . . . . . . . . . . . . . . . 1 . . . Piercing Weapon . | . . . . . . . . . . . . . . . . . . . . . . . . . . . . . . Special Melee Weapon 2 | . . . 1 . . 1 . . . . . . . . . . . . . . . . . . . . . . . Unidentified Prototypes 54 | . . . . . . . 4 3 1 . . 5 12 . . . . 5 . 3 . . 3 . 1 5 2 10 . Corrupted Parts 2 | . . . . . . . . . . . . . . . . . . . . . . 2 . . . . . . . System Corruption 6 | . . . . . . . . . . . . . . . . . . . . . . 6 . . . . . . . Parts Lost 64 | . . . . . . 12 5 5 . . . . 13 2 . . . . 3 3 . . 1 . . . . 1 19 Power 5 | . . . . . . 1 1 . . . . . 1 . . . . . . . . . . . . . . . 2 Propulsion 19 | . . . . . . 5 2 2 . . . . 4 1 . . . . 1 1 . . . . . . . . 3 Utility 29 | . . . . . . 2 1 2 . . . . 8 1 . . . . 2 2 . . 1 . . . . 1 9 Weapon 11 | . . . . . . 4 1 1 . . . . . . . . . . . . . . . . . . . . 5 Highest Loss Streak 8 | . . . . . . 8 2 2 . . . . 5 2 . . . . 1 1 . . 1 . . . . 1 5 To Critical Strikes . | . . . . . . . . . . . . . . . . . . . . . . . . . . . . . . Average Slot Usage (%) 89 | . 99 100 99 100 100 90 94 98 99 99 100 99 92 85 87 87 88 85 84 83 88 89 88 88 81 81 80 81 79 Engine 4 | . 14 14 14 14 9 4 3 6 11 13 13 13 8 . . . . . . . . . . . . . . . . Reactor 3 | . . . . . . . . . . . . . 1 5 5 5 5 4 5 5 5 5 5 5 8 8 8 8 11 Treads 14 | . 27 28 28 28 36 14 21 29 26 26 26 26 17 12 10 11 11 10 7 7 9 10 10 10 6 4 4 3 3 Leg 6 | . . . . . . 14 5 . . . . . 7 12 11 10 11 10 11 10 10 10 10 9 9 8 8 8 7 Device 17 | . 14 14 13 14 18 10 16 17 13 12 13 15 13 13 19 22 26 23 22 20 21 21 23 21 19 17 18 20 21 Storage 9 | . 14 14 14 14 9 9 9 7 6 6 6 6 8 13 11 10 11 10 11 10 10 10 10 10 9 12 13 13 9 Processor 4 | . . . . . 9 9 1 7 13 13 13 9 3 . . . . . . 3 . . . . . 5 4 4 5 Protection 10 | . . . . . . 4 8 11 13 13 13 13 16 12 13 11 7 9 11 10 14 15 12 14 13 9 8 7 7 Energy Cannon 9 | . . . . . . . 4 . 11 9 13 12 12 13 11 11 11 10 10 10 10 10 9 10 9 12 13 12 10 Ballistic Gun 1 | . 14 9 . 1 9 11 7 13 . 3 . . . . . . . . . . . . . . . . . . . Peak Build Rating 234 | 7 11 11 11 11 15 19 31 44 65 66 67 81 124 127 129 141 136 142 137 156 162 151 158 156 188 203 203 218 234 Average Rating 115 | 6 9 10 10 11 14 15 24 39 59 62 66 71 87 119 126 129 132 131 133 146 148 150 151 151 165 194 197 206 217 On Entrance 95 | 6 7 10 11 11 11 15 19 31 43 64 66 67 75 122 118 128 132 132 133 135 154 151 150 147 152 173 198 199 212 Naked Turns . | . . . . . . . . . . . . . . . . . . . . . . . . . . . . . . Heaviest Build 249 | 14 31 90 90 50 51 54 69 79 164 147 147 159 172 172 185 183 178 178 174 195 188 188 188 188 227 243 247 238 249 Greatest Support 110 | 40 40 40 40 40 80 80 80 82 102 102 102 102 110 60 60 60 60 60 60 60 60 60 60 60 60 80 60 80 60 Greatest Overweight (x) 16 | . . 2 2 1 . 16 5 1 1 1 1 1 4 2 3 3 2 5 2 3 3 6 3 3 3 4 4 3 4 Average Overweight (x) 1 | . . . 1 1 . 1 . . . 1 1 1 1 2 2 2 2 2 2 2 2 3 2 2 2 2 3 2 3 Largest Inventory Capacity 25 | 8 15 25 25 20 20 20 20 20 25 25 25 25 25 25 25 25 25 25 25 25 25 25 25 25 25 25 25 25 25 Average Capacity 23 | 8 14 18 24 20 20 20 20 20 24 25 25 25 25 25 25 24 25 23 25 25 25 25 25 25 25 23 25 25 24 Most Carried 25 | 6 15 19 20 20 19 18 20 20 25 25 25 25 25 25 25 25 25 25 25 25 25 25 25 25 25 25 25 25 25 Average Carried 22 | 2 12 16 18 19 16 16 19 19 24 24 24 24 22 24 24 22 24 22 24 24 24 24 24 24 24 23 24 24 22 Final Capacity 25 | 8 15 25 20 20 20 20 20 20 25 25 25 25 25 25 25 25 25 25 25 25 25 25 25 25 25 25 25 25 25 Final Carried 25 | 4 15 19 18 20 16 15 20 20 24 25 25 25 25 25 25 25 25 25 25 24 24 25 25 25 25 25 25 24 23 Class Distribution -------------------- 41% | Golem 35% | Scavenger-Mutant 6% | Alien-Golem 5% | Infiltrator-Golem 4% | Mutant 3% | Generator-Golem Dominant Class ---------------- Mutant | -10/Materials Scavenger-Mutant | -10/Mines Scavenger-Mutant | -10/Exiles Scavenger-Mutant | -9/Mines Scavenger-Mutant | -8/Materials Scavenger-Mutant | -8/Garrison Scavenger-Mutant | -8/Materials Mutant | -7/Factory Scavenger-Mutant | -6/Factory Scavenger-Mutant | -6/Lower Caves Scavenger-Mutant | -6/Lower Caves Scavenger-Mutant | -6/Zion Scavenger-Mutant | -6/Deep Caves Golem | -5/Proximity Caves Infiltrator-Golem | -5/Factory Golem | -5/Upper Caves Infiltrator-Golem | -5/Upper Caves Golem | -5/Zhirov Golem | -4/Proximity Caves Golem | -4/Factory Golem | -4/Upper Caves Golem | -4/Upper Caves Golem | -4/Warlord Golem | -3/Proximity Caves Golem | -3/Research Golem | -2/Research Golem | -2/Quarantine Alien-Golem | -2/Section 7 Generator-Golem | -1/Access Resources | -11 -10 -10 -10 -9 -8 -8 -8 -7 -6 -6 -6 -6 -6 -5 -5 -5 -5 -5 -4 -4 -4 -4 -4 -3 -3 -2 -2 -2 -1 ----------- Run | Yrd Mat Min Exi Min Mat Gar Mat Fac Fac Low Low Zio Dee Pro Fac Upp Upp Zhi Pro Fac Upp Upp War Pro Res Res Qua Sec Acc Matter Collected 8070 | 290 327 24 . 100 . 516 606 624 368 199 3 165 988 111 160 146 35 100 130 313 187 51 401 225 190 290 249 950 322 Remotely . | . . . . . . . . . . . . . . . . . . . . . . . . . . . . . . Salvage Created 31301 | 105 691 45 . 32 . 552 1583 883 1042 434 52 . 1742 450 1254 1054 114 224 589 4539 515 287 79 281 1024 1798 1414 6044 4474 Parts 1436 | 9 43 1 . 5 . 40 78 54 33 11 . . 30 15 70 52 2 1 33 208 16 10 4 15 53 69 70 315 199 Haulers Intercepted 17 | . 2 . . . . . 4 1 1 . . . . . 1 . . . . 6 . . . . 1 . . 1 . Recyclers Shooed 17 | 1 2 . . . . . . . 5 . . . . . . . . . . 6 . . . . . 1 . 2 . Parts Field Recycled . | . . . . . . . . . . . . . . . . . . . . . . . . . . . . . . Retrieved Matter . | . . . . . . . . . . . . . . . . . . . . . . . . . . . . . . Parts Self-Destructed 132 | . . . . . . . . . . 5 . 4 . 13 . 45 1 . 33 . 10 8 . 13 . . . . . Prevented 5 | . . . . . . . . . . . . . . . . . . . . . 1 . . 4 . . . . . Kills | -11 -10 -10 -10 -9 -8 -8 -8 -7 -6 -6 -6 -6 -6 -5 -5 -5 -5 -5 -4 -4 -4 -4 -4 -3 -3 -2 -2 -2 -1 ------- Run | Yrd Mat Min Exi Min Mat Gar Mat Fac Fac Low Low Zio Dee Pro Fac Upp Upp Zhi Pro Fac Upp Upp War Pro Res Res Qua Sec Acc Combat Hostiles Destroyed 451 | . 12 . . 2 . 22 18 17 7 6 . . 61 7 21 12 . . 14 57 8 3 1 3 11 22 17 76 54 Melee 3 | . . . . . . . . . . . . . 1 . . . . . . 1 . . . . . . . 1 . Guns 49 | . 10 . . 2 . 11 7 15 3 . . . . . . . . . . . . . . . . . . . 1 Cannons 325 | . . . . . . . 9 . 4 2 . . 16 7 20 11 . . 14 50 8 3 1 3 11 22 17 74 53 AOE 62 | . 2 . . . . 11 2 2 . 1 . . 37 . 1 . . . . 6 . . . . . . . . . Classes Destroyed 30 | 2 5 . . 1 . 3 1 2 1 . . . 4 1 . 1 . . 1 2 1 . . . 1 2 . 2 . Worker 10 | . 1 . . . . . 4 . 1 . . . . . . . . . . 3 . . . . . . . 1 . Builder 8 | . . . . . . . . . . . . . . . . . . . . 3 . . . . . . 1 2 2 Tunneler 3 | 3 . . . . . . . . . . . . . . . . . . . . . . . . . . . . . Hauler 17 | . 2 . . . . . 4 1 1 . . . . . 1 . . . . 6 . . . . 1 . . 1 . Recycler 16 | 1 1 . . . . . 6 . 3 . . . . . . . . . . 3 . . . . . 1 . . 1 Minesweeper 1 | . . . . . . . . . . . . . . . . . . . 1 . . . . . . . . . . Mechanic 3 | . . . . . . . . 1 . . . . . . . . . . . 2 . . . . . . . . . Operator 6 | . 1 . . . . . 1 . . . . . . . 1 . . . . 1 . . . . . . . 2 . Watcher 23 | . 2 . . . . . 4 . 3 . . . . . 2 . . . . 5 . . . . . 1 1 3 2 Swarmer 58 | . . . . 2 . 10 3 7 . . . . . . 3 2 . . 9 10 1 . . . . 5 . 4 2 Saboteur 2 | . . . . . . . . . . . . . . . . . . . . 1 . . . . . . . 1 . Grunt 128 | . 12 . . . . 6 8 4 3 . . . . 4 9 4 . . 3 17 . . . 1 3 11 9 14 20 Brawler 14 | . . . . . . . 1 . . . . . . 1 1 . . . . 3 . . 1 . . . 1 5 1 Duelist 16 | . . . . . . . . . . . . . . 1 1 . . . . 1 . . . . . . 1 4 8 Protector 1 | . . . . . . . . . . . . . . . . . . . . . . . . . . . . 1 . Sentry 35 | . . . . . . 2 5 4 1 1 . . . 1 2 1 . . . 2 1 1 . . 3 3 . 6 2 Demolisher 2 | . . . . . . . . . . . . . . . . . . . . . . . . . . 2 . . . Specialist 2 | . . . . . . . . . . . . . . . . . . . . . . . . . 2 . . . . Hunter 34 | . . . . . . 4 1 . . . . . . . 2 3 . . . 6 . 2 . . . . . 6 10 Programmer 75 | . . . . . . . . 2 2 . . . . . 3 . . . 2 17 . . . 2 2 . 6 29 10 Behemoth 6 | . . . . . . . . . 1 1 . . . . . 1 . . . . . . . . 1 . . 2 . S7 Guard 2 | . . . . . . . . . . . . . . . . . . . . . . . . . . . . 2 . Striker 1 | . . . . . . . . . . . . . . . . . . . . . . . . . . 1 . . . Executioner 3 | . . . . . . . . . . . . . . . . . . . . . . . . . . . . 2 1 Zionite 1 | . . . . . . 1 . . . . . . . . . . . . . . . . . . . . . . . Z-Light 5 | . . . . . . . . . . . . . 5 . . . . . . . . . . . . . . . . Samaritan 1 | . . . . . . . . . . . . . . . . 1 . . . . . . . . . . . . . Assembler 2 | . . . . . . . . . . . . . 2 . . . . . . . . . . . . . . . . Assembled 51 | . . . . . . . . . . . . . 44 . . . . . . . . . . . . . 7 . . Golem 13 | . . . . . . . . . . . . . 12 . . 1 . . . . . . . . . . . . . Thug 9 | . . . . . . . . . . 4 . . . . . . . . . . 5 . . . . . . . . Savage 1 | . . . . . . . . . . . . . . . . . . . . . . 1 . . . . . . . Mutant 1 | . . . . . . . . . . . . . . . . . . . . . 1 . . . . . . . . Best Kill Streak 44 | 2 5 . . 2 . 4 7 10 3 4 . . 44 3 4 5 . . 5 11 5 1 1 1 5 4 4 11 9 Combat Bots Only 42 | . 4 . . 2 . 4 3 10 3 4 . . 42 3 4 5 . . 5 9 5 1 1 1 4 4 4 11 9 Max Kills in Single Turn 11 | 1 2 . . 1 . 3 3 2 1 1 . . 11 1 3 1 . . 1 6 1 1 1 1 1 1 2 2 2 Gunslinging 1 | . . . . . . . . 1 . . . . . . . . . . . . . . . . . . . . . Exploded 11 | . 2 . . . . 3 1 1 . 1 . . 11 . 1 . . . . 4 . . . . . . . . . Melee 1 | . . . . . . . . . . . . . 1 . . . . . . 1 . . . . . . . 1 . Uniques/NPCs Destroyed 1 | . . . . . . . . . . . . . 1 . . . . . . . . . . . . . . . . Z-Imprinter (-6/Deep Caves) Combat | -11 -10 -10 -10 -9 -8 -8 -8 -7 -6 -6 -6 -6 -6 -5 -5 -5 -5 -5 -4 -4 -4 -4 -4 -3 -3 -2 -2 -2 -1 -------- Run | Yrd Mat Min Exi Min Mat Gar Mat Fac Fac Low Low Zio Dee Pro Fac Upp Upp Zhi Pro Fac Upp Upp War Pro Res Res Qua Sec Acc Hostile Shots Fired 4809 | . 50 . . 7 . 139 85 214 106 51 . . 196 29 84 118 15 . 59 426 101 39 20 10 78 122 125 881 1854 Missed 1635 | . 14 . . 3 . 28 21 86 29 21 . . 61 8 15 38 6 . 20 168 33 17 12 6 29 43 47 282 648 Damage Taken 33564 | . 460 . . 34 . 1705 822 1348 1173 365 . . 2712 415 625 726 78 . 304 2611 649 167 120 33 526 962 1060 5799 10870 Core 3761 | . 107 . . 8 . 218 134 87 76 4 . . 259 15 8 54 . . 33 168 81 4 6 . 28 31 38 436 1966 Absorbed by Shields 17556 | . . . . . . . 142 69 . . . . . . 516 596 85 . 243 1435 274 139 127 37 552 937 997 4299 7108 Reduced by Siege Mode 353 | . . . . . . . . . . . . . . . . . . . . . . . . . . . 5 226 122 Redirected to Shielding 275 | . . . . . . . . . . . . . 250 . . . . . . . . . . . . . . . 25 Ignored by Resistances 20407 | . . . . . . . 41 158 190 68 . . 255 86 233 275 32 . 119 849 13 65 40 15 265 368 482 4178 12675 Regen/Repaired (Parts) 7632 | . 197 . . . . . 33 . . . . . . . 217 . . . . 28 . . 28 . . . . 3506 3623 Core Remaining (%) 69 | 100 . . . 54 . . 36 87 . . . . . 58 . . . . 90 . . . . 77 97 . . 30 . Volleys Fired 1372 | 15 56 2 . 2 . 65 77 62 48 29 3 2 111 18 61 42 3 2 23 188 22 10 7 10 34 56 74 216 134 Largest 3 | 2 2 2 . 2 . 2 2 2 2 2 2 2 2 2 2 2 2 2 2 2 2 2 2 2 2 3 3 3 3 Hottest 170 | 40 85 70 . 70 . 100 110 75 150 150 170 170 170 50 50 50 50 50 50 50 50 50 50 50 50 75 75 75 120 Shots Fired 2902 | 30 109 4 1 4 . 112 149 121 96 37 5 3 215 37 112 85 6 4 46 304 45 20 13 20 64 149 194 577 340 Gun 503 | 30 106 4 1 4 . 101 94 118 25 2 . . . . . . . . . . . . . . . . . . 18 Cannon 2356 | . . . . . . . 50 . 71 31 5 2 199 37 112 85 6 4 46 304 45 20 13 20 64 149 194 577 322 Launcher 41 | . 3 . . . . 11 5 3 . 4 . . 15 . . . . . . . . . . . . . . . . Special 2 | . . . . . . . . . . . . 1 1 . . . . . . . . . . . . . . . . Kinetic 308 | 30 53 2 . 2 . 56 47 108 8 2 . . . . . . . . . . . . . . . . . . . Thermal 2476 | . 53 2 1 2 . 38 94 . 88 29 5 2 165 37 112 85 6 4 46 304 45 20 13 20 64 149 194 577 321 Explosive 34 | . 3 . . . . 11 5 . . . . . 15 . . . . . . . . . . . . . . . . Electromagnetic 64 | . . . . . . 7 3 13 . 6 . . 34 . . . . . . . . . . . . . . . 1 Entropic 18 | . . . . . . . . . . . . . . . . . . . . . . . . . . . . . 18 Robot Hit Streak 58 | 4 11 4 . 8 . 14 13 14 13 7 4 2 15 16 19 15 3 6 14 26 26 4 10 8 14 20 41 58 42 Robot Miss Streak 6 | 3 6 . . . . 4 4 6 3 1 1 . 5 1 2 2 . . 1 3 2 5 1 1 1 3 2 4 4 Penetration Max 1 | . . . . . . . 1 . . . . . . . . . . . . . . . . . . . . . . Secondary Targets 6 | . 1 . . . . . . 5 . . . . . . . . . . . . . . . . . . . . . Max Gunslinging Chain 1 | . 1 . . . . . . 1 . . . . . . . . . . . . . . . . . . . . . Shots Hit Robots 1916 | 17 63 3 4 4 . 70 101 82 66 12 2 1 144 29 65 61 2 3 31 186 38 8 10 10 45 92 131 386 250 Core Hits 1022 | 8 34 1 . 2 . 45 58 40 26 9 . . 138 10 31 27 2 3 20 104 15 7 4 5 21 45 62 167 138 Critical Kills 5 | . . . . . . . . . . 1 . . 4 . . . . . . . . . . . . . . . . Critical Parts Destroyed 5 | 1 . . . . . . . . . . . . 2 . . . . . . . . . . . . . . . 2 Critical Strikes 24 | 1 7 . . . . 4 3 . . 1 . . 6 . . . . . . . . . . . . . . . 2 Burn 14 | . 7 . . . . 4 3 . . . . . . . . . . . . . . . . . . . . . . Meltdown 4 | . . . . . . . . . . 1 . . 3 . . . . . . . . . . . . . . . . Destroy 1 | 1 . . . . . . . . . . . . . . . . . . . . . . . . . . . . . Smash 3 | . . . . . . . . . . . . . 3 . . . . . . . . . . . . . . . . Detonate 2 | . . . . . . . . . . . . . . . . . . . . . . . . . . . . . 2 Melee Attacks 31 | . . . 4 . . 12 . . . . . . 15 . . . . . . . . . . . . . . . . Impact 19 | . . . . . . 4 . . . . . . 15 . . . . . . . . . . . . . . . . Slashing . | . . . . . . . . . . . . . . . . . . . . . . . . . . . . . . Piercing . | . . . . . . . . . . . . . . . . . . . . . . . . . . . . . . Sneak Attacks 12 | . . . 4 . . 8 . . . . . . . . . . . . . . . . . . . . . . . Combat Hostiles . | . . . . . . . . . . . . . . . . . . . . . . . . . . . . . . Follow-up Attacks . | . . . . . . . . . . . . . . . . . . . . . . . . . . . . . . Damage Inflicted 83747 | 184 1084 37 . 46 . 1467 2340 1660 1935 619 61 . 7446 1305 3430 2921 87 189 1549 11443 1772 485 504 557 2213 4158 4317 18383 13555 Guns 6263 | 184 900 37 . 46 . 763 1015 1462 512 22 . . . . . . . . . . . . . . . . . . 1322 Cannons 68811 | . . . . . . . 898 . 1386 216 61 . 3838 1305 3165 2921 87 189 1549 9407 1772 485 504 557 2213 4121 4317 18356 11464 Explosions 8006 | . 183 . . . . 704 396 198 . 381 . . 3183 . 259 . . . . 1967 . . . . . . . . 735 Melee 425 | . . . . . . . . . . . . . 425 . . . . . . . . . . . . . . . . Ramming 242 | . 1 . . . . . 31 . 37 . . . . . 6 . . . . 69 . . . . . 37 . 27 34 Kinetic 2972 | 184 354 12 . 21 . 476 540 1284 79 22 . . . . . . . . . . . . . . . . . . . Thermal 71765 | . 546 25 . 25 . 287 1268 67 1819 165 61 . 3337 1305 3165 2921 87 189 1549 10493 1772 485 504 557 2213 4121 4317 18356 12131 Explosive 5674 | . 183 . . . . 704 396 . . . . . 3183 . 259 . . . . 881 . . . . . . . . 68 Electromagnetic 1347 | . . . . . . . 105 309 . 432 . . 501 . . . . . . . . . . . . . . . . Impact 425 | . . . . . . . . . . . . . 425 . . . . . . . . . . . . . . . . Slashing . | . . . . . . . . . . . . . . . . . . . . . . . . . . . . . . Piercing . | . . . . . . . . . . . . . . . . . . . . . . . . . . . . . . Entropic 1322 | . . . . . . . . . . . . . . . . . . . . . . . . . . . . . 1322 Highest Corruption 19 | . 1 1 1 1 . . 10 3 2 2 . . 1 4 2 2 2 . . 9 13 19 19 . 1 . 2 . . Average Corruption 3 | . 1 1 1 1 . . 2 1 1 1 . . 1 3 2 2 1 . . 3 12 17 19 . 1 . 1 . . Corruption Purged 5 | . . . . . . . . 1 . 2 . . . . . . 2 . . . . . . . . . . . . Corruption Blocked 4 | . . . . . . . . . . . . . . . . . . . . . . . . . . . 4 . . Effects 242 | . 5 5 4 2 . . 11 5 8 2 . . 7 25 2 22 3 . . 42 63 31 2 . 2 . 1 . . Message Errors 49 | . 1 1 . . . . 1 3 1 1 . . . 8 1 . 2 . . 7 15 6 1 . 1 . . . . Matter Fused 58 | . 2 1 . 1 . . 2 2 3 . . . 5 5 . 3 1 . . 10 16 6 1 . . . . . . Heat Flow Errors 28 | . 1 1 . . . . 1 . 2 . . . . 2 . 4 . . . 5 8 3 . . 1 . . . . Energy Discharges 37 | . 1 . 1 1 . . 4 . 2 . . . 1 1 . 8 . . . 5 5 7 . . . . 1 . . Parts Rejected 1 | . . . . . . . . . . . . . . . . . . . . 1 . . . . . . . . . Parts Fused 1 | . . . . . . . . . . . . . 1 . . . . . . . . . . . . . . . . Data Loss (minor) 39 | . . 2 2 . . . 1 . . . . . . 8 1 3 . . . 7 10 5 . . . . . . . Data Loss (major) 11 | . . . . . . . 1 . . . . . . . . 3 . . . 2 5 . . . . . . . . Misfires 12 | . . . 1 . . . 1 . . 1 . . . 1 . 1 . . . 3 2 2 . . . . . . . Alerts 3 | . . . . . . . . . . . . . . . . . . . . 1 1 1 . . . . . . . Weapon Failures 3 | . . . . . . . . . . . . . . . . . . . . 1 1 1 . . . . . . . Overload Shots . | . . . . . . . . . . . . . . . . . . . . . . . . . . . . . . Overflow Damage 2586 | . 6 . . . . 1 13 . 48 5 12 . 377 59 223 105 . . 27 721 4 . . . 19 105 101 439 321 Projectiles 1948 | . . . . . . . 13 . 32 . 12 . 63 59 223 105 . . 27 453 4 . . . 19 105 101 439 293 Explosions 540 | . 6 . . . . 1 . . . 5 . . 232 . . . . . . 268 . . . . . . . . 28 Melee 98 | . . . . . . . . . 16 . . . 82 . . . . . . . . . . . . . . . . Knockbacks 5 | . . . . . . . . . . . . . 4 . . . . . . . . . . . . . . . 1 Impact 5 | . . . . . . . . . . . . . 4 . . . . . . . . . . . . . . . 1 Kinetic . | . . . . . . . . . . . . . . . . . . . . . . . . . . . . . . Secondary . | . . . . . . . . . . . . . . . . . . . . . . . . . . . . . . Self-Inflicted Damage 436 | . . . . . . 83 31 77 . 71 . . 15 . . . . . . 89 . . . . . . . . 70 Shots 15 | . . . . . . 3 1 2 . 4 . . 1 . . . . . . 3 . . . . . . . . 1 Rammed 16 | . 2 . . . . . 3 . 2 . . . . . . . . . . 2 . . . . . . . . 7 Targets Rammed 29 | . 2 . . . . . 4 . 2 . . . . . 1 . . . . 8 . . . . . 1 . 2 9 Kicked 12 | . . . . . . . . . . . . . . . 1 . . . . 6 . . . . . 1 . 2 2 Crushed 1 | . . . . . . . 1 . . . . . . . . . . . . . . . . . . . . . . Highest Temperature 374 | . 192 69 . . . 28 354 45 305 78 72 36 195 244 18 235 . . 7 355 238 100 374 . 132 25 125 207 . Average Temperature 74 | . 80 35 . . . 10 107 18 37 45 42 24 70 97 8 87 . . 7 127 91 44 199 . 43 11 90 68 . Received Heat Transfer 6342 | . 258 . . . . 405 366 254 312 126 . . 490 144 169 242 36 . 67 306 117 . 22 5 226 126 349 994 1328 Effects 5 | . . . . . . . 1 . 2 . . . . . . . . . . 2 . . . . . . . . . Shutdowns 1 | . . . . . . . 1 . . . . . . . . . . . . . . . . . . . . . . Interference 4 | . . . . . . . . . 2 . . . . . . . . . . 2 . . . . . . . . . Siege Activations 17 | . . . . . . . . . . . . . . . . . . . . . . . . . . . 2 10 5 Total Turns 415 | . . . . . . . . . . . . . . . . . . . . . . . . . . . 26 260 129 Longest Duration 52 | . . . . . . . . . . . . . . . . . . . . . . . . . . . 16 52 32 Robots Corrupted 7 | . . . . . . . . . 1 2 . . 4 . . . . . . . . . . . . . . . . Combat Hostiles 6 | . . . . . . . . . . 2 . . 4 . . . . . . . . . . . . . . . . Parts Fried 12 | . . . . . . . . 1 1 5 . . 1 . . . . . . 3 . . . 1 . . . . . Impact Corruptions 3 | . . . . . . . . . 1 . . . 2 . . . . . . . . . . . . . . . . Robots Melted 6 | . . . . . . . . . . 1 . . 3 . . 1 . . . . . . . . . . . 1 . Combat Hostiles 6 | . . . . . . . . . . 1 . . 3 . . 1 . . . . . . . . . . . 1 . Parts Melted 52 | . 2 . . . . 2 4 . 5 5 . . 2 . 1 1 . . 1 3 . . . . 1 1 1 16 7 Heat Transferred 45910 | . 1998 74 . 74 . 1147 2775 50 2368 222 74 . 3771 725 1625 1575 50 37 850 5550 975 275 159 250 1150 2325 2735 9068 6008 Parts Sabotaged . | . . . . . . . . . . . . . . . . . . . . . . . . . . . . . . Parts Stolen . | . . . . . . . . . . . . . . . . . . . . . . . . . . . . . . Parts Stripped . | . . . . . . . . . . . . . . . . . . . . . . . . . . . . . . Power Chain Reactions 1 | . . . . . . . . 1 . . . . . . . . . . . . . . . . . . . . . Alert | -11 -10 -10 -10 -9 -8 -8 -8 -7 -6 -6 -6 -6 -6 -5 -5 -5 -5 -5 -4 -4 -4 -4 -4 -3 -3 -2 -2 -2 -1 ------- Run | Yrd Mat Min Exi Min Mat Gar Mat Fac Fac Low Low Zio Dee Pro Fac Upp Upp Zhi Pro Fac Upp Upp War Pro Res Res Qua Sec Acc Peak Influence 3552 | 20 233 91 . 78 29 636 540 397 167 . . . . . 423 . . . . 1764 . . . . 276 639 887 2096 3552 Initial 1241 | . 13 86 . . 29 18 310 2 98 . . . . . . . . . . . . . . . . 155 312 302 1241 Average 552 | 12 108 81 . 3 29 373 386 153 40 . . . . . 203 . . . . 602 . . . . 57 272 529 885 2285 Maximum Alert Level 5 | . 1 . . . . 2 2 1 . . . . . . 2 . . . . 5 . . . . 1 2 3 5 5 Low Security (%) 36 | 100 86 100 . 100 100 9 2 60 100 . . . . . 39 . . . . 22 . . . . 95 42 . . . Level 1 20 | . 13 . . . . 37 34 39 . . . . . . 59 . . . . 25 . . . . 4 20 16 20 . Level 2 21 | . . . . . . 52 63 . . . . . . . 1 . . . . 10 . . . . . 36 74 30 . Level 3 6 | . . . . . . . . . . . . . . . . . . . . 19 . . . . . . 9 22 . Level 4 6 | . . . . . . . . . . . . . . . . . . . . 18 . . . . . . . 10 31 Level 5 4 | . . . . . . . . . . . . . . . . . . . . 1 . . . . . . . 16 22 High Security 4 | . . . . . . . . . . . . . . . . . . . . 1 . . . . . . . . 45 Max Security . | . . . . . . . . . . . . . . . . . . . . . . . . . . . . . . Squads Dispatched 116 | . 3 . . . . . 3 3 3 . . . . . 7 . . . . 16 . . . . 3 . 7 19 52 Investigation 8 | . 2 . . . . . . . . . . . . . 3 . . . . 2 . . . . . . . . 1 Extermination 30 | . . . . . . . . 2 2 . . . . . 2 . . . . 8 . . . . 1 . 2 10 3 Reinforcement 19 | . 1 . . . . . 2 1 1 . . . . . 2 . . . . 2 . . . . 2 . 3 2 3 Assault 52 | . . . . . . . . . . . . . . . . . . . . 4 . . . . . . 2 7 39 Garrison 7 | . . . . . . . 1 . . . . . . . . . . . . . . . . . . . . . 6 Intercept . | . . . . . . . . . . . . . . . . . . . . . . . . . . . . . . Searches Triggered . | . . . . . . . . . . . . . . . . . . . . . . . . . . . . . . Construction Impeded . | . . . . . . . . . . . . . . . . . . . . . . . . . . . . . . Haulers Reinforced 4 | . . . . . . . . 1 . . . . . . 1 . . . . 1 . . . . . . . 1 . Active Scanning Responses . | . . . . . . . . . . . . . . . . . . . . . . . . . . . . . . Cargo Convoy Interrupts 1 | . . . . . . . . . . . . . . . 1 . . . . . . . . . . . . . . Stealth | -11 -10 -10 -10 -9 -8 -8 -8 -7 -6 -6 -6 -6 -6 -5 -5 -5 -5 -5 -4 -4 -4 -4 -4 -3 -3 -2 -2 -2 -1 --------- Run | Yrd Mat Min Exi Min Mat Gar Mat Fac Fac Low Low Zio Dee Pro Fac Upp Upp Zhi Pro Fac Upp Upp War Pro Res Res Qua Sec Acc Distress Signals 28 | . 4 . . . . . 5 2 . . . . . . 1 . . . . 1 . . . . . 5 . 2 8 Communications Jammed 385 | . . . . . . . . . . . . . . . 12 . . . . 92 . . 23 . . . 10 163 85 Distress Signals 384 | . . . . . . . . . . . . . . . 12 . . . . 92 . . 23 . . . 10 162 85 Times Spotted 831 | . 26 . . 4 . 28 29 26 13 6 . . 73 8 23 12 3 . 10 91 10 4 11 5 14 39 29 107 260 Peak Tracking Total 46 | . 4 . . 4 . 5 4 8 3 4 . . 37 3 5 3 3 . 4 6 4 2 14 1 2 9 5 12 46 Tactical Retreats 44 | . 1 . . . . 2 . 2 . . . . 5 1 . . . . . 4 . . . 2 . 3 1 4 19 Traps | -11 -10 -10 -10 -9 -8 -8 -8 -7 -6 -6 -6 -6 -6 -5 -5 -5 -5 -5 -4 -4 -4 -4 -4 -3 -3 -2 -2 -2 -1 ------- Run | Yrd Mat Min Exi Min Mat Gar Mat Fac Fac Low Low Zio Dee Pro Fac Upp Upp Zhi Pro Fac Upp Upp War Pro Res Res Qua Sec Acc Traps Triggered 19 | . 1 . . . . 4 6 2 . . . . . . 1 . . . . 1 . . 1 . 1 . . 1 1 Indirectly . | . . . . . . . . . . . . . . . . . . . . . . . . . . . . . . Trap Hack Attempts . | . . . . . . . . . . . . . . . . . . . . . . . . . . . . . . Triggered . | . . . . . . . . . . . . . . . . . . . . . . . . . . . . . . Disarmed . | . . . . . . . . . . . . . . . . . . . . . . . . . . . . . . Reprogrammed . | . . . . . . . . . . . . . . . . . . . . . . . . . . . . . . Reused 1 | . . . . . . . . . . . . . . . . . . . . 1 . . . . . . . . . Traps Reconfigurated 14 | . . . . . . . . . . . . . . . 4 . . . . 5 . . . . 5 . . . . Traps Extracted . | . . . . . . . . . . . . . . . . . . . . . . . . . . . . . . Installed . | . . . . . . . . . . . . . . . . . . . . . . . . . . . . . . Triggered 43 | . . . . . . . . . . 1 . . . . 2 . . . . 1 . 2 36 1 . . . . . Most Traps Carried 4 | . . 4 4 4 4 4 4 . . . . . . . . . . . . . . . . . . . . . . Machines | -11 -10 -10 -10 -9 -8 -8 -8 -7 -6 -6 -6 -6 -6 -5 -5 -5 -5 -5 -4 -4 -4 -4 -4 -3 -3 -2 -2 -2 -1 ---------- Run | Yrd Mat Min Exi Min Mat Gar Mat Fac Fac Low Low Zio Dee Pro Fac Upp Upp Zhi Pro Fac Upp Upp War Pro Res Res Qua Sec Acc Machines Disabled 67 | . . . . . . 3 1 1 1 . . 3 3 . 3 . . . . 16 . 1 1 . . . 7 25 2 Max in Single Turn 3 | . . . . . . 1 1 1 1 . . 1 1 . 2 . . . . 3 . 1 1 . . . 1 2 1 Garrison Access 2 | . . . . . . . 1 . 1 . . . . . . . . . . . . . . . . . . . . Garrison Relay 2 | . . . . . . 2 . . . . . . . . . . . . . . . . . . . . . . . Machines Repaired . | . . . . . . . . . . . . . . . . . . . . . . . . . . . . . . Machines Dismantled 3 | . . . . . . . . . . . . 3 . . . . . . . . . . . . . . . . . Machines Sabotaged . | . . . . . . . . . . . . . . . . . . . . . . . . . . . . . . Overloaded Fab Kills . | . . . . . . . . . . . . . . . . . . . . . . . . . . . . . . Hacking | -11 -10 -10 -10 -9 -8 -8 -8 -7 -6 -6 -6 -6 -6 -5 -5 -5 -5 -5 -4 -4 -4 -4 -4 -3 -3 -2 -2 -2 -1 --------- Run | Yrd Mat Min Exi Min Mat Gar Mat Fac Fac Low Low Zio Dee Pro Fac Upp Upp Zhi Pro Fac Upp Upp War Pro Res Res Qua Sec Acc Machines Accessed 52 | . 5 . 1 . 1 2 8 3 2 1 . . . . 7 . . 4 . 7 . . 6 . . . 2 3 . Terminals 24 | . 2 . . . . 2 5 2 . . . . . . 2 . . . . 6 . . . . . . 2 3 . Fabricators 1 | . . . . . . . . . . . . . . . 1 . . . . . . . . . . . . . . Repair Stations 8 | . 1 . . . . . 1 1 1 . . . . . 3 . . . . 1 . . . . . . . . . Recycling Units 4 | . 2 . . . . . 1 . . . . . . . 1 . . . . . . . . . . . . . . Scanalyzers . | . . . . . . . . . . . . . . . . . . . . . . . . . . . . . . Garrison Access 3 | . . . . . 1 . 1 . 1 . . . . . . . . . . . . . . . . . . . . Total Hacks 143 | . 13 . 1 . 1 4 26 5 3 1 . . . . 24 . . 17 . 21 . . 15 . . . 5 7 . Successful 90 | . 10 . 1 . 1 . 14 . 1 1 . . . . 16 . . 17 . 10 . . 15 . . . 1 3 . Failed 53 | . 3 . . . . 4 12 5 2 . . . . . 8 . . . . 11 . . . . . . 4 4 . Catastrophic 8 | . 1 . . . . 1 2 . . . . . . . . . . . . 3 . . . . . . . 1 . Database Lockouts . | . . . . . . . . . . . . . . . . . . . . . . . . . . . . . . Manual 48 | . 5 . . . . . 13 2 . . . . . . 13 . . . . 12 . . . . . . 3 . . Terminals 67 | . 4 . . . . 4 21 4 . . . . . . 5 . . . . 17 . . . . . . 5 7 . Fabricators 6 | . . . . . . . . . . . . . . . 6 . . . . . . . . . . . . . . Repair Stations 22 | . 4 . . . . . 2 1 1 . . . . . 10 . . . . 4 . . . . . . . . . Recycling Units 9 | . 5 . . . . . 1 . . . . . . . 3 . . . . . . . . . . . . . . Scanalyzers . | . . . . . . . . . . . . . . . . . . . . . . . . . . . . . . Garrison Access 5 | . . . . . 1 . 2 . 2 . . . . . . . . . . . . . . . . . . . . Terminal Hacks 47 | . . . 1 . . . 5 . . 1 . . . . . . . 17 . 4 . . 15 . . . 1 3 . Record 20 | . . . 1 . . . . . . . . . . . . . . 5 . . . . 13 . . . 1 . . Part Schematic 4 | . . . . . . . . . . . . . . . . . . 4 . . . . . . . . . . . Robot Analysis 4 | . . . . . . . . . . . . . . . . . . 4 . . . . . . . . . . . Prototype ID Bank 4 | . . . . . . . . . . . . . . . . . . 4 . . . . . . . . . . . Open Door 4 | . . . . . . . . . . 1 . . . . . . . . . . . . 2 . . . . 1 . Branch Access Points 1 | . . . . . . . . . . . . . . . . . . . . 1 . . . . . . . . . Emergency Access Points 1 | . . . . . . . . . . . . . . . . . . . . 1 . . . . . . . . . Terminal Index 1 | . . . . . . . 1 . . . . . . . . . . . . . . . . . . . . . . Alert Level 2 | . . . . . . . 1 . . . . . . . . . . . . . . . . . . . . 1 . Unreport Threat 4 | . . . . . . . 3 . . . . . . . . . . . . . . . . . . . . 1 . Locate Traps 2 | . . . . . . . . . . . . . . . . . . . . 2 . . . . . . . . . Fabricator Hacks 3 | . . . . . . . . . . . . . . . 3 . . . . . . . . . . . . . . Network Status 1 | . . . . . . . . . . . . . . . 1 . . . . . . . . . . . . . . Load Schematic 1 | . . . . . . . . . . . . . . . 1 . . . . . . . . . . . . . . Build 1 | . . . . . . . . . . . . . . . 1 . . . . . . . . . . . . . . Repair Station Hacks 14 | . 4 . . . . . 2 . . . . . . . 5 . . . . 3 . . . . . . . . . Scan Component 8 | . 2 . . . . . 1 . . . . . . . 3 . . . . 2 . . . . . . . . . Repair 6 | . 2 . . . . . 1 . . . . . . . 2 . . . . 1 . . . . . . . . . Recycling Unit Hacks 4 | . 2 . . . . . 1 . . . . . . . 1 . . . . . . . . . . . . . . Retrieve Components 4 | . 2 . . . . . 1 . . . . . . . 1 . . . . . . . . . . . . . . Scanalyzer . | . . . . . . . . . . . . . . . . . . . . . . . . . . . . . . Garrison Access Hacks 3 | . . . . . 1 . 1 . 1 . . . . . . . . . . . . . . . . . . . . Unlock Access 1 | . . . . . 1 . . . . . . . . . . . . . . . . . . . . . . . . Seal Access 2 | . . . . . . . 1 . 1 . . . . . . . . . . . . . . . . . . . . Unauthorized Hacks 19 | . 4 . . . . . 5 . . . . . . . 7 . . . . 3 . . . . . . . . . Terminals 12 | . 2 . . . . . 5 . . . . . . . 2 . . . . 3 . . . . . . . . . Botnet 5 | . . . . . . . 2 . . . . . . . 1 . . . . 2 . . . . . . . . . Operators 1 | . . . . . . . 1 . . . . . . . . . . . . . . . . . . . . . . Skim 6 | . 2 . . . . . 2 . . . . . . . 1 . . . . 1 . . . . . . . . . Fabricators 1 | . . . . . . . . . . . . . . . 1 . . . . . . . . . . . . . . Prioritize 1 | . . . . . . . . . . . . . . . 1 . . . . . . . . . . . . . . Repair Stations 2 | . . . . . . . . . . . . . . . 2 . . . . . . . . . . . . . . Patch 2 | . . . . . . . . . . . . . . . 2 . . . . . . . . . . . . . . Recycling Units 4 | . 2 . . . . . . . . . . . . . 2 . . . . . . . . . . . . . . Reject 1 | . . . . . . . . . . . . . . . 1 . . . . . . . . . . . . . . Mask 1 | . . . . . . . . . . . . . . . 1 . . . . . . . . . . . . . . Tunnel 2 | . 2 . . . . . . . . . . . . . . . . . . . . . . . . . . . . Scanalyzers . | . . . . . . . . . . . . . . . . . . . . . . . . . . . . . . Garrison Access . | . . . . . . . . . . . . . . . . . . . . . . . . . . . . . . Data Cores Recovered 1 | . . . . . . . . . . . . . . . 1 . . . . . . . . . . . . . . Used . | . . . . . . . . . . . . . . . . . . . . . . . . . . . . . . Hacking Detections 34 | . 4 . . . 1 2 6 3 1 . . . . . 6 . . . . 7 . . . . . . 1 3 . Full Trace Events 3 | . . . . . . . . . . . . . . . 1 . . . . 2 . . . . . . . . . Feedback Events . | . . . . . . . . . . . . . . . . . . . . . . . . . . . . . . Feedback Blocked . | . . . . . . . . . . . . . . . . . . . . . . . . . . . . . . Robot Schematics Acquired 5 | . . . . . . . . . . . . 4 . . . . . . . . . . . . . . 1 . . Robots Built . | . . . . . . . . . . . . . . . . . . . . . . . . . . . . . . Authchips . | . . . . . . . . . . . . . . . . . . . . . . . . . . . . . . Time . | . . . . . . . . . . . . . . . . . . . . . . . . . . . . . . Total Robot Build Rating . | . . . . . . . . . . . . . . . . . . . . . . . . . . . . . . Part Schematics Acquired 23 | . . . . . . . . . . . . 14 . . . . . 4 . . . . . . . . 5 . . Parts Built 2 | . . . . . . . . . . . . . . . 2 . . . . . . . . . . . . . . Authchips . | . . . . . . . . . . . . . . . . . . . . . . . . . . . . . . Time 47 | . . . . . . . . . . . . . . . 47 . . . . . . . . . . . . . . Total Part Build Rating 10 | . . . . . . . . . . . . . . . 10 . . . . . . . . . . . . . . Parts Repaired 6 | . 2 . . . . . 1 . . . . . . . 2 . . . . 1 . . . . . . . . . Time 248 | . 52 . . . . . 38 . . . . . . . 88 . . . . 70 . . . . . . . . . Parts Recycled . | . . . . . . . . . . . . . . . . . . . . . . . . . . . . . . Recycled Matter . | . . . . . . . . . . . . . . . . . . . . . . . . . . . . . . Retrieved Matter . | . . . . . . . . . . . . . . . . . . . . . . . . . . . . . . Retrieved Components 21 | . 10 . . . . . 10 . . . . . . . 1 . . . . . . . . . . . . . . Parts Scanalyzed . | . . . . . . . . . . . . . . . . . . . . . . . . . . . . . . Part Schematics Acquired . | . . . . . . . . . . . . . . . . . . . . . . . . . . . . . . Parts Damaged . | . . . . . . . . . . . . . . . . . . . . . . . . . . . . . . Bothacking | -11 -10 -10 -10 -9 -8 -8 -8 -7 -6 -6 -6 -6 -6 -5 -5 -5 -5 -5 -4 -4 -4 -4 -4 -3 -3 -2 -2 -2 -1 ------------ Run | Yrd Mat Min Exi Min Mat Gar Mat Fac Fac Low Low Zio Dee Pro Fac Upp Upp Zhi Pro Fac Upp Upp War Pro Res Res Qua Sec Acc Used RIF Installer . | . . . . . . . . . . . . . . . . . . . . . . . . . . . . . . Robots Hacked 6 | . . . 4 . . . . . . . . 1 1 . . . . . . . . . . . . . . . . Non-combat 3 | . . . 3 . . . . . . . . . . . . . . . . . . . . . . . . . . Combat 3 | . . . 1 . . . . . . . . 1 1 . . . . . . . . . . . . . . . . Robot Hacks Applied 6 | . . . 4 . . . . . . . . 1 1 . . . . . . . . . . . . . . . . parse_system 6 | . . . 4 . . . . . . . . 1 1 . . . . . . . . . . . . . . . . Relay Couplers Released 7 | . . . . . . 7 . . . . . . . . . . . . . . . . . . . . . . . Machine Destruction 7 | . . . . . . 7 . . . . . . . . . . . . . . . . . . . . . . . Fabnet Peak Effective % . | . . . . . . . . . . . . . . . . . . . . . . . . . . . . . . Robots Rewired 6 | . . . . . . 4 . . . . . . . . . . . . . . 2 . . . . . . . . Allies Hacked . | . . . . . . . . . . . . . . . . . . . . . . . . . . . . . . Hacks Repelled . | . . . . . . . . . . . . . . . . . . . . . . . . . . . . . . Allies | -11 -10 -10 -10 -9 -8 -8 -8 -7 -6 -6 -6 -6 -6 -5 -5 -5 -5 -5 -4 -4 -4 -4 -4 -3 -3 -2 -2 -2 -1 -------- Run | Yrd Mat Min Exi Min Mat Gar Mat Fac Fac Low Low Zio Dee Pro Fac Upp Upp Zhi Pro Fac Upp Upp War Pro Res Res Qua Sec Acc Total Allies 61 | . . . . 2 . 4 . . . . . 4 1 . . . . . . . 2 . . . . . 20 . 28 Largest Group 8 | . . . . 2 1 4 . . . . . 4 5 . . . . . . . 2 2 1 . . . 8 . 8 Highest-Rated Group 215 | . . . . 46 15 45 . . . . . 96 215 . . . . . . . 58 58 29 . . . 112 . 115 Highest-Rated Ally 119 | . . . . 31 15 15 . . . . . 31 119 . . . . . . . 29 29 29 . . . 15 . 15 Total Orders . | . . . . . . . . . . . . . . . . . . . . . . . . . . . . . . Ally Attacks 435 | . . . . 9 . 12 . . . . . . 60 . . . . . . . 3 4 . . . . 261 . 86 Total Damage 8685 | . . . . 64 . 54 . . . . . . 2217 . . . . . . . 58 116 . . . . 4159 . 2017 Kills 28 | . . . . 2 . 1 . . . . . . 13 . . . . . . . 1 1 . . . . 5 . 5 Allies Corrupted . | . . . . . . . . . . . . . . . . . . . . . . . . . . . . . . Allies Melted 9 | . . . . . . . . . . . . . . . . . . . . . . . 6 . . 3 . . . Fabricated Assembled 20 | . . . . . . . . . . . . . . . . . . . . . . . . . . . 20 . . Intel | -11 -10 -10 -10 -9 -8 -8 -8 -7 -6 -6 -6 -6 -6 -5 -5 -5 -5 -5 -4 -4 -4 -4 -4 -3 -3 -2 -2 -2 -1 ------- Run | Yrd Mat Min Exi Min Mat Gar Mat Fac Fac Low Low Zio Dee Pro Fac Upp Upp Zhi Pro Fac Upp Upp War Pro Res Res Qua Sec Acc Robot Analysis Total 4 | . . . . . . . . . . . . . . . . . . 4 . . . . . . . . . . . Derelict Logs Recovered 9 | . . . . 1 . . . . . . . 2 . 1 . 1 . . 2 . . 2 . . . . . . . Drone Launches . | . . . . . . . . . . . . . . . . . . . . . . . . . . . . . . Drone Recoveries . | . . . . . . . . . . . . . . . . . . . . . . . . . . . . . . Exploration | -11 -10 -10 -10 -9 -8 -8 -8 -7 -6 -6 -6 -6 -6 -5 -5 -5 -5 -5 -4 -4 -4 -4 -4 -3 -3 -2 -2 -2 -1 ------------- Run | Yrd Mat Min Exi Min Mat Gar Mat Fac Fac Low Low Zio Dee Pro Fac Upp Upp Zhi Pro Fac Upp Upp War Pro Res Res Qua Sec Acc Turns Passed 45959 | 136 1140 440 759 678 38 1242 1537 1006 1922 1761 711 3674 5093 1264 1474 2133 808 941 1525 2945 1430 771 1215 1340 720 2853 1097 3290 2016 Spaces Moved 15698 | 54 537 223 241 272 20 446 697 444 723 638 294 1196 1830 319 551 652 366 284 441 1021 323 299 498 356 238 812 320 915 688 Core 101 | . . . . . . 1 . . . . . . . . . . . . . . . . . . . . . . 100 Treads 6444 | 54 537 223 241 272 20 172 435 444 723 638 294 1196 1194 . . . . . . . . 1 . . . . . . . Legs 8838 | . . . . . . 273 34 . . . . . 636 319 551 652 366 284 441 1021 323 298 498 356 238 812 320 896 520 Wheels 228 | . . . . . . . 228 . . . . . . . . . . . . . . . . . . . . . . Hover . | . . . . . . . . . . . . . . . . . . . . . . . . . . . . . . Flight . | . . . . . . . . . . . . . . . . . . . . . . . . . . . . . . Fastest Speed 50 | 160 160 160 240 240 160 160 111 158 158 236 238 238 189 210 210 180 210 180 210 210 210 240 210 210 210 180 240 210 50 Average Speed 222 | 160 160 191 310 240 160 218 158 160 235 236 238 238 229 210 216 213 210 211 210 224 239 241 235 239 239 236 240 239 224 Slowest Speed 850 | 160 160 320 320 240 160 850 470 243 238 238 238 238 480 210 240 240 210 300 210 240 240 640 240 240 240 270 270 240 270 Overloaded Moves . | . . . . . . . . . . . . . . . . . . . . . . . . . . . . . . Propulsion Burnouts . | . . . . . . . . . . . . . . . . . . . . . . . . . . . . . . Robots Hopped . | . . . . . . . . . . . . . . . . . . . . . . . . . . . . . . Cave-ins Triggered . | . . . . . . . . . . . . . . . . . . . . . . . . . . . . . . Teleports 3 | . . . . . . . . . . . . . . . . . . . . . . . . . . 1 . 1 1 Spacefolds 32 | . . . . . . . . . . . . . . . . . . . . . . . . . . . . 6 26 Exploration Rate (%) 48 | 3 75 41 59 63 6 58 65 13 24 67 49 86 91 48 13 72 45 61 66 28 45 54 80 59 7 32 44 64 28 Regions Visited 29 Branch Regions 18 Pre-discovered Areas 11 | . 2 . 1 . . . . . . 1 . 1 . . . . . 3 1 . . 1 1 . . . . . . Known Exits Taken 9 | . . . . . 1 . . 1 1 1 1 . . 1 1 . . . 1 1 . . . . . . . . . Unknown Exits Taken 19 | 1 1 1 1 1 . . 1 . . . . 1 1 . . 1 1 1 . . 1 1 1 1 1 1 1 1 . Scrap Searched 20 | . . . . 2 . . . . . 3 1 2 . 3 . 1 2 . 1 . 2 1 . 2 . . . . . Spaces Dug 144 | . . . . . . . 5 . . 11 1 . 8 . 24 . 2 . . 28 . 2 . 4 7 17 8 17 10 Terrain Destroyed 696 | . 17 . . . . 21 26 3 12 13 3 . 37 8 85 19 4 . 12 179 5 8 2 10 17 45 31 73 66 Melee . | . . . . . . . . . . . . . . . . . . . . . . . . . . . . . . Projectile 477 | . . . . . . . 4 . 12 13 3 . 34 8 44 19 4 . 12 84 5 8 2 10 17 45 31 73 49 AOE 219 | . 17 . . . . 21 22 3 . . . . 3 . 41 . . . . 95 . . . . . . . . 17 Terrain Rammed . | . . . . . . . . . . . . . . . . . . . . . . . . . . . . . . Walls Destroyed . | . . . . . . . . . . . . . . . . . . . . . . . . . . . . . . Machines Disabled . | . . . . . . . . . . . . . . . . . . . . . . . . . . . . . . Actions | -11 -10 -10 -10 -9 -8 -8 -8 -7 -6 -6 -6 -6 -6 -5 -5 -5 -5 -5 -4 -4 -4 -4 -4 -3 -3 -2 -2 -2 -1 --------- Run | Yrd Mat Min Exi Min Mat Gar Mat Fac Fac Low Low Zio Dee Pro Fac Upp Upp Zhi Pro Fac Upp Upp War Pro Res Res Qua Sec Acc Total 24299 | 77 709 233 252 293 26 585 989 655 853 856 303 1964 2510 881 721 1329 400 635 998 1377 942 331 530 826 330 1650 501 1596 947 Wait 5590 | . 69 1 . 16 3 5 107 98 25 157 1 700 359 526 69 549 22 262 522 58 542 16 . 445 16 668 57 266 31 Move 15614 | 53 536 222 240 271 19 445 696 443 722 637 293 1195 1829 318 550 651 365 283 440 1020 322 298 497 355 237 811 319 901 646 Hop . | . . . . . . . . . . . . . . . . . . . . . . . . . . . . . . Pick Up 344 | 2 20 5 1 2 . 7 29 10 14 6 3 4 39 1 11 28 1 24 3 28 9 2 4 1 4 25 13 34 14 Fast Attach 225 | 1 1 . 1 . . 6 20 12 9 2 . 10 28 4 4 6 2 12 . 11 3 2 4 4 10 18 7 40 8 Attach 86 | . 2 . 1 . 4 6 4 5 1 . . 1 14 1 3 3 . 2 2 5 1 . 1 1 1 2 4 9 13 Detach 36 | . . . . . . . 1 . . . . 1 6 . . 1 . . . 2 . . 2 . 1 1 1 12 8 Swap 250 | 2 11 2 2 2 . 18 11 11 12 15 . 11 34 1 10 2 3 5 1 11 3 . 3 . 6 6 6 29 33 Drop 632 | 4 12 1 3 . . 6 40 14 20 10 3 13 75 12 12 47 4 45 7 41 20 3 12 10 21 62 20 82 33 Fire 1372 | 15 56 2 . 2 . 65 77 62 48 29 3 2 111 18 61 42 3 2 23 188 22 10 7 10 34 56 74 216 134 Melee 31 | . . . 4 . . 12 . . . . . . 15 . . . . . . . . . . . . . . . . Ram . | . . . . . . . . . . . . . . . . . . . . . . . . . . . . . . Kick 12 | . . . . . . . . . . . . . . . 1 . . . . 6 . . . . . 1 . 2 2 Crush 17 | . 2 . . . . . 4 . 2 . . . . . . . . . . 2 . . . . . . . . 7 Escape Stasis 43 | . . . . . . 15 . . . . . . . . . . . . . 5 . . . . . . . 5 18 Rewire 20 | . . . . . . . . . . . . . . . . . . . . . 20 . . . . . . . . Trap . | . . . . . . . . . . . . . . . . . . . . . . . . . . . . . . Miscellaneous 27 | . . . . . . . . . . . . 27 . . . . . . . . . . . . . . . . . Route ------- -11/Scrapyard -10/Materials (discovered 3 exits: [*Mat] / [*Min x2]) -10/Mines (discovered 2 exits: [*Mat] / *Exi) -10/Exiles -9/Mines (discovered 2 exits: *Mat x2) -8/Materials -8/Garrison (discovered 3 exits: *Mat x3) -8/Materials (discovered 2 exits: *Fac x2) -7/Factory -6/Factory (discovered 2 exits: *Fac / *Low) -6/Lower Caves -6/Lower Caves (discovered 2 exits: *Fac / *Zio) -6/Zion -6/Deep Caves -5/Proximity Caves -5/Factory (discovered 5 exits: Fac / *Upp x2 / *Ext x2) -5/Upper Caves -5/Upper Caves -5/Zhirov -4/Proximity Caves -4/Factory (discovered 2 exits: *Upp x2) -4/Upper Caves -4/Upper Caves -4/Warlord -3/Proximity Caves -3/Research -2/Research -2/Quarantine (discovered 2 exits: [Acc] / *Sec) -2/Section 7 -1/Access History --------- Turn | Location | Event 20 | -11/Scrapyard | Discovered new exit (range 3) 137 | -11/Scrapyard | Entered Materials 316 | -10/Materials | Build established: Mutant 807 | -10/Materials | Discovered new exit (range 9) 890 | -10/Materials | Repaired Lgt. Treads 917 | -10/Materials | Repaired Lgt. Treads 1116 | -10/Materials | Discovered new exit (range 11) 1229 | -10/Materials | Build established: Scavenger-Mutant 1229 | -10/Materials | Discovered new exit (range 12) 1277 | -10/Materials | Entered Mines 1290 | -10/Mines | Discovered new exit (range 11) 1356 | -10/Mines | Met a Derelict bent on vengeance 1563 | -10/Mines | Found a hidden stash of uninstalled traps 1698 | -10/Mines | Deemed a non-threat by the Exiles lab entrance 1698 | -10/Mines | Discovered new exit (range 5) 1717 | -10/Mines | Entered Exiles 1804 | -10/Exiles | Met 8R-AWN 1866 | -10/Exiles | Met EX-HEX 1954 | -10/Exiles | Met EX-BIN 2061 | -10/Exiles | Met EX-DEC 2080 | -10/Exiles | Learned location of Zion (-6) 2449 | -10/Exiles | Discovered new exit (range 14) 2476 | -10/Exiles | Entered Mines 2530 | -9/Mines | Learned Materials garrison access intel 2720 | -9/Mines | Discovered new exit (range 6) 3095 | -9/Mines | Discovered new exit (range 12) 3154 | -9/Mines | Entered Materials 3154 | -8/Materials | Accompanied by 1 ally 3154 | -8/Materials | Evolved 4 slots: Propulsion x2, Utility x2 3155 | -8/Materials | Loaded intel: 1 garrison access location 3187 | -8/Materials | Identified exit to Garrison 3192 | -8/Materials | Entered Garrison 3192 | -8/Garrison | Accompanied by 1 ally 3282 | -8/Garrison | Triggered checkpoint 3316 | -8/Garrison | Triggered checkpoint 3412 | -8/Garrison | Lost 8 parts (4n1u3w) 3484 | -8/Garrison | Triggered checkpoint 3595 | -8/Garrison | Discovered new exit (range 10) 3626 | -8/Garrison | Triggered checkpoint 3787 | -8/Garrison | Garrison Relay disabled 4027 | -8/Garrison | Discovered new exit (range 10) 4076 | -8/Garrison | Triggered checkpoint 4113 | -8/Garrison | Lost 3 parts (1n1u1w) 4134 | -8/Garrison | Garrison Relay disabled 4403 | -8/Garrison | Discovered new exit (range 13) 4434 | -8/Garrison | Entered Materials 4610 | -8/Materials | Core integrity fell below 50% 4956 | -8/Materials | Garrison activated, responded to threat 5257 | -8/Materials | Repaired Lgt. Nuclear Core 5414 | -8/Materials | Discovered new exit (range 9) 5921 | -8/Materials | System corruption reached 10% 5936 | -8/Materials | Discovered new exit (range 11) 5971 | -8/Materials | Entered Factory 5971 | -7/Factory | Evolved 2 slots: Utility x2 6378 | -7/Factory | Destroyed 10 combat bots 6642 | -7/Factory | Build established: Mutant 6938 | -7/Factory | Discovered new exit (range 7) 6953 | -7/Factory | Identified exit to Factory 6977 | -7/Factory | Entered another Factory area 6977 | -6/Factory | Evolved 2 slots: Power x1, Utility x1 7240 | -6/Factory | Build established: Scavenger-Mutant 7263 | -6/Factory | Spotted B-75 Beast 7304 | -6/Factory | Destroyed B-75 Beast 8213 | -6/Factory | Discovered new exit (range 12) 8242 | -6/Factory | Identified exit to Factory 8883 | -6/Factory | Discovered new exit (range 9) 8897 | -6/Factory | Identified exit to Lower Caves 8899 | -6/Factory | Entered Lower Caves 8901 | -6/Lower Caves | Ambushed by wild Derelicts 8920 | -6/Lower Caves | Met a Warlord Commander 8921 | -6/Lower Caves | Learned location of Warlord (-4) 8922 | -6/Lower Caves | Warlord Commander delivered Encrypted Comm Array 8923 | -6/Lower Caves | Found Encrypted Comm Array 8983 | -6/Lower Caves | Encountered a Warlord checkpoint 9656 | -6/Lower Caves | Spotted B-75 Beast 9886 | -6/Lower Caves | Destroyed B-75 Beast 10071 | -6/Lower Caves | Attracted the attention of an 0b10 checkpoint 10641 | -6/Lower Caves | Discovered new exit (range 5) 10649 | -6/Lower Caves | Identified exit to Lower Caves 10660 | -6/Lower Caves | Entered another Lower Caves area 10687 | -6/Lower Caves | Discovered exit to Factory (range 11) 11353 | -6/Lower Caves | Discovered new exit (range 5) 11363 | -6/Lower Caves | Identified exit to Zion 11371 | -6/Lower Caves | Entered Zion 11512 | -6/Zion | Gained Derelict followers 11867 | -6/Zion | Learned 4 Factory zone layouts 12160 | -6/Zion | Met Imprinter 12388 | -6/Zion | Learned location of Armory (-3) 12411 | -6/Zion | Found Prototype Launcher 12411 | -6/Zion | Identified Gui. Missile Launcher 12704 | -6/Zion | Given the Hacking Drone Bay 12712 | -6/Zion | Found Prototype Device 12712 | -6/Zion | Identified Hacking Drone Bay 12902 | -6/Zion | Found Prototype Processor 12902 | -6/Zion | Identified Exp. Terrain Scan Processor 12909 | -6/Zion | Found Prototype Processor 12909 | -6/Zion | Identified Exp. Armor Integrity Analyzer 12917 | -6/Zion | Found Exp. Terrain Scan Processor 12956 | -6/Zion | Found Prototype Hackware 13223 | -6/Zion | Discovered new exit (range 5) 13226 | -6/Zion | Saw the warning signs outside the Deep Caves entrance 15045 | -6/Zion | Entered Deep Caves 15045 | -6/Deep Caves | Accompanied by 4 allies 15048 | -6/Deep Caves | Met 5H-AD0 15363 | -6/Deep Caves | Z-Facility disabled 15438 | -6/Deep Caves | Attacked by Z-Imprinter 15448 | -6/Deep Caves | Allies destroyed Z-Imprinter 15477 | -6/Deep Caves | Lost 4 allies 15513 | -6/Deep Caves | Found Prototype Device 15514 | -6/Deep Caves | Identified Zio. Metafield Generator 15561 | -6/Deep Caves | Found Zio. Weapon Casing 15955 | -6/Deep Caves | Found Prototype Protection 15955 | -6/Deep Caves | Identified Zio. Heavy Carapace 15984 | -6/Deep Caves | Found Zio. Weapon Casing 16156 | -6/Deep Caves | Found Zio. Weapon Casing 17692 | -6/Deep Caves | Discovered new exit (range 7) 18040 | -6/Deep Caves | Spotted AG-58008 18075 | -6/Deep Caves | Destroyed AG-58008 18091 | -6/Deep Caves | Found GOLEM Unit 18102 | -6/Deep Caves | Lost 3 parts (3u) 18171 | -6/Deep Caves | Spotted AG-33157 18187 | -6/Deep Caves | Destroyed AG-33157 18266 | -6/Deep Caves | Triggered Deep Caves wall 18269 | -6/Deep Caves | Exposed GOLEM chamber 18292 | -6/Deep Caves | Spotted AS-72368 18305 | -6/Deep Caves | Spotted AS-41268 18330 | -6/Deep Caves | Destroyed AS-41268 18333 | -6/Deep Caves | Destroyed AS-72368 18369 | -6/Deep Caves | Destroyed 42 combat bots 18372 | -6/Deep Caves | Lost 5 parts (1n4u) 18580 | -6/Deep Caves | Found GOLEM Unit 18613 | -6/Deep Caves | Build established: Mutant 18730 | -6/Deep Caves | Found Mobile Assembly Unit 18740 | -6/Deep Caves | Found Prototype Device 18741 | -6/Deep Caves | Identified Trap Reconfigurator 18931 | -6/Deep Caves | Build established: Golem 19039 | -6/Deep Caves | Found GOLEM Unit 19044 | -6/Deep Caves | Found GOLEM Unit 19052 | -6/Deep Caves | Found GOLEM Unit 19474 | -6/Deep Caves | Found Zio. Weapon Casing 19496 | -6/Deep Caves | Found Zio. Weapon Casing 19564 | -6/Deep Caves | Found Zio. Weapon Casing 19587 | -6/Deep Caves | Found Zio. Weapon Casing 20138 | -6/Deep Caves | Entered Proximity Caves 20354 | -5/Proximity Caves | Spotted B-75 Beast 20524 | -5/Proximity Caves | Attracted the attention of an 0b10 checkpoint 20631 | -5/Proximity Caves | Learned 12 Factory zone layouts 20690 | -5/Proximity Caves | Discovered exit to Factory (range 7) 21402 | -5/Proximity Caves | Entered Factory 21402 | -5/Factory | Evolved 2 slots: Utility x2 21403 | -5/Factory | Identified exit to Upper Caves 21403 | -5/Factory | Identified exit to Extension 21403 | -5/Factory | Identified exit to Factory 21476 | -5/Factory | Repaired Imp. Medium Armor Plating 21710 | -5/Factory | Build established: Infiltrator-Golem 21764 | -5/Factory | Fabricated Force Field (x2) 22240 | -5/Factory | Repaired Imp. Medium Armor Plating 22514 | -5/Factory | Discovered exit to Extension (range 7) 22690 | -5/Factory | Build established: Scavenger-Golem 22802 | -5/Factory | Cargo convoy interrupted 22876 | -5/Factory | Entered Upper Caves 23381 | -5/Upper Caves | Build established: Golem 24245 | -5/Upper Caves | Spotted B-75 Beast 24274 | -5/Upper Caves | Destroyed B-75 Beast 24504 | -5/Upper Caves | Attracted the attention of an 0b10 checkpoint 24571 | -5/Upper Caves | Learned Factory machine intel 24948 | -5/Upper Caves | Discovered new exit (range 15) 25009 | -5/Upper Caves | Entered another Upper Caves area 25590 | -5/Upper Caves | Build established: Infiltrator-Golem 25799 | -5/Upper Caves | Discovered new exit (range 7) 25805 | -5/Upper Caves | Attracted the attention of an 0b10 checkpoint 25817 | -5/Upper Caves | Entered Zhirov 25818 | -5/Zhirov | Discovered new exit (range 3) 25856 | -5/Zhirov | Met Zhirov 25909 | -5/Zhirov | Learned location of Quarantine (-2) 25909 | -5/Zhirov | Learned location of Testing (-3) 25909 | -5/Zhirov | Learned location of Command (-1) 25930 | -5/Zhirov | Zhirov requested help retrieving the SGEMP Prototype 25964 | -5/Zhirov | Found Alien Artifact 25964 | -5/Zhirov | Identified Integrated Reactor 25964 | -5/Zhirov | Installed Integrated Reactor, increased core energy generation (+10) 25993 | -5/Zhirov | Found Alien Artifact 26113 | -5/Zhirov | Build established: Golem 26521 | -5/Zhirov | Build established: Infiltrator-Golem 26758 | -5/Zhirov | Entered Proximity Caves 26794 | -4/Proximity Caves | Learned Research stockpile data 27122 | -4/Proximity Caves | Build established: Golem 27686 | -4/Proximity Caves | Discovered exit to Factory (range 12) 28283 | -4/Proximity Caves | Entered Factory 28283 | -4/Factory | Evolved 2 slots: Utility x2 28284 | -4/Factory | Loaded intel: 242 machine locations 28933 | -4/Factory | Destroyed 9 combat bots 29022 | -4/Factory | Found Prototype Hackware 29649 | -4/Factory | Repaired Broken Force Field? 29810 | -4/Factory | First assault squad dispatched 30245 | -4/Factory | Spotted B-86 Titan 30530 | -4/Factory | Identified Exp. System Shield (x2) 30709 | -4/Factory | Identified exit to Upper Caves 31184 | -4/Factory | High security lockdown imminent 31205 | -4/Factory | Destroyed 7 combat bots 31228 | -4/Factory | Entered Upper Caves 31257 | -4/Upper Caves | Attacked by a faux Warlord 31259 | -4/Upper Caves | System corruption reached 10% 32483 | -4/Upper Caves | Attracted the attention of an 0b10 checkpoint 32634 | -4/Upper Caves | Discovered new exit (range 11) 32658 | -4/Upper Caves | Entered another Upper Caves area 32658 | -4/Upper Caves | Accompanied by 2 allies 32790 | -4/Upper Caves | Attacked by a delusional Derelict stockpiling parts 32869 | -4/Upper Caves | Encountered a Warlord checkpoint 33294 | -4/Upper Caves | Learned Research machine intel 33397 | -4/Upper Caves | Discovered new exit (range 13) 33404 | -4/Upper Caves | Attracted the attention of an 0b10 checkpoint 33429 | -4/Upper Caves | Entered Warlord 33429 | -4/Warlord | Accompanied by 1 ally 33504 | -4/Warlord | System corruption cleaned by Quarantine Array 33693 | -4/Warlord | Warlord's base attacked by MAIN.C 33720 | -4/Warlord | Found Prototype Energy Gun 33720 | -4/Warlord | Identified Vortex Shotgun 33725 | -4/Warlord | Found Vortex Shotgun 33990 | -4/Warlord | Learned Factory scanalyzer intel 33990 | -4/Warlord | Learned Armory garrison access intel 33990 | -4/Warlord | Learned Research fabricator intel 33992 | -4/Warlord | Learned 4 Research zone layouts 33992 | -4/Warlord | Learned 4 Research zone layouts 33992 | -4/Warlord | Learned 4 Testing zone layouts 33992 | -4/Warlord | Learned 4 Quarantine zone layouts 33997 | -4/Warlord | Learned Research emergency access door positions 34043 | -4/Warlord | Warlord forces counterattacked 34067 | -4/Warlord | Met Warlord 34103 | -4/Warlord | Found Prototype Device 34103 | -4/Warlord | Identified Thermal Barrier 34131 | -4/Warlord | Found Exp. Targeting Computer 34368 | -4/Warlord | Warlord base infiltrated, sounded retreat 34408 | -4/Warlord | Build established: Infiltrator-Golem 34482 | -4/Warlord | Spotted Striker 34519 | -4/Warlord | Discovered new exit (range 10) 34529 | -4/Warlord | Spotted Striker 34536 | -4/Warlord | Spotted Executioner 34572 | -4/Warlord | Lost 6 allies 34603 | -4/Warlord | Spotted B-90 Cyclops 34644 | -4/Warlord | Entered Proximity Caves 34912 | -3/Proximity Caves | Build established: Golem 35289 | -3/Proximity Caves | Discovered new exit (range 13) 35405 | -3/Proximity Caves | Spotted B-86 Titan 35984 | -3/Proximity Caves | Entered Research 35984 | -3/Research | Evolved 2 slots: Power x1, Utility x1 35988 | -3/Research | Loaded intel: 114 machine locations 35989 | -3/Research | Loaded intel: 4 fabricator locations 36073 | -3/Research | Spotted B-86 Titan 36094 | -3/Research | Destroyed B-86 Titan 36589 | -3/Research | Discovered new exit (range 14) 36704 | -3/Research | Entered another Research area 36704 | -2/Research | Warlord forces began assault on 0b10 36704 | -2/Research | Evolved 2 slots: Utility x1, Weapon x1 36814 | -2/Research | Research machine network offline 37211 | -2/Research | Borebot progress halted 37311 | -2/Research | Borebot progress halted 37423 | -2/Research | Met up with Warlord 37651 | -2/Research | Borebot progress halted 37662 | -2/Research | Found Exp. Core Analyzer 37829 | -2/Research | Found Prototype Device 37829 | -2/Research | Identified Adv. Kinecellerator 37838 | -2/Research | Lost 3 allies 37976 | -2/Research | Spotted Striker 38421 | -2/Research | Spotted Striker 38429 | -2/Research | Spotted Striker 38430 | -2/Research | Identified Transdimensional Reconstructor 38430 | -2/Research | Warped through subspace 38483 | -2/Research | Spotted Striker 38505 | -2/Research | Destroyed Striker 38976 | -2/Research | Discovered new exit (range 18) 39557 | -2/Research | Entered Quarantine 39720 | -2/Quarantine | Found Alien Artifact 39787 | -2/Quarantine | Found Alien Artifact 39925 | -2/Quarantine | Found Alien Artifact 39925 | -2/Quarantine | Identified Terrabomb 39925 | -2/Quarantine | Used Terrabomb 40029 | -2/Quarantine | Discovered new exit (range 23) 40098 | -2/Quarantine | First assault squad dispatched 40102 | -2/Quarantine | Found Alien Artifact 40102 | -2/Quarantine | Identified Core Reset Matrix 40102 | -2/Quarantine | Identified Phase Redirector 40102 | -2/Quarantine | Identified Subatomic Replicator 40102 | -2/Quarantine | Used Core Reset Matrix 40106 | -2/Quarantine | Detected hypermatrix surge 40106 | -2/Quarantine | Sensed 10 artifacts in vicinity 40115 | -2/Quarantine | Discovered new exit (range 12) 40152 | -2/Quarantine | Found Hpw. Transdimensional Reconstructor 40156 | -2/Quarantine | Found Hpw. Transdimensional Reconstructor 40328 | -2/Quarantine | Spotted Fortress 40437 | -2/Quarantine | Lost 12 allies 40445 | -2/Quarantine | Allies destroyed Fortress 40603 | -2/Quarantine | Discovered new exit (range 6) 40654 | -2/Quarantine | Entered Section 7 40655 | -2/Section 7 | Sensed 25 artifacts in vicinity 40656 | -2/Section 7 | Murdered 4 allies 40686 | -2/Section 7 | Found Unknown Protection 40686 | -2/Section 7 | Identified Hvy. Reflective Plating 40920 | -2/Section 7 | Used Subatomic Replicator to create Supercharged Integrated Reactor 40926 | -2/Section 7 | Installed Supercharged Integrated Reactor, increased core energy generation (+15) 41010 | -2/Section 7 | Spotted S7 Guard 41022 | -2/Section 7 | Found Core Membrane 41022 | -2/Section 7 | Installed Core Membrane, gained immunity to corruption 41043 | -2/Section 7 | Destroyed S7 Guard 41053 | -2/Section 7 | Found Prototype Protection 41053 | -2/Section 7 | Identified Hvy. Regenerative Plating 41122 | -2/Section 7 | Found Prototype Device 41122 | -2/Section 7 | Identified Exp. ECM Suite 41178 | -2/Section 7 | Spotted S7 Guard 41207 | -2/Section 7 | Build established: Alien-Golem 41247 | -2/Section 7 | Found Spacefold Activator 41324 | -2/Section 7 | Warped through subspace 41393 | -2/Section 7 | Spotted B-90 Cyclops 41424 | -2/Section 7 | Destroyed B-90 Cyclops 41442 | -2/Section 7 | First assault squad dispatched 41716 | -2/Section 7 | Spotted B-99 Colossus 41793 | -2/Section 7 | Destroyed B-99 Colossus 41865 | -2/Section 7 | Found Integrity Redistributor 41868 | -2/Section 7 | Found Integrity Redistributor 41872 | -2/Section 7 | Found Integrity Redistributor 41960 | -2/Section 7 | Found LRC Matter Compressor 41960 | -2/Section 7 | Installed LRC Matter Compressor, increased matter storage capacity (+125) 41973 | -2/Section 7 | Found LRC Insulator 41973 | -2/Section 7 | Installed LRC Insulator, gained EM resistance (25) 42460 | -2/Section 7 | Spotted Executioner 42465 | -2/Section 7 | Destroyed Executioner 42473 | -2/Section 7 | Spotted Executioner 42479 | -2/Section 7 | Destroyed Executioner 42528 | -2/Section 7 | Found Prototype Device 42528 | -2/Section 7 | Identified Adv. Kinecellerator 42551 | -2/Section 7 | Found Exp. Core Analyzer 42874 | -2/Section 7 | Found Integrated Dissipator 42874 | -2/Section 7 | Installed Integrated Dissipator, increased core heat dissipation (+20) 43039 | -2/Section 7 | Spotted S7 Guard 43088 | -2/Section 7 | Destroyed S7 Guard 43131 | -2/Section 7 | Found Hvy. Regenerative Plating 43142 | -2/Section 7 | Destroyed 11 combat bots 43211 | -2/Section 7 | Found Core Regenerator 43267 | -2/Section 7 | Found Thermal Barrier 43458 | -2/Section 7 | Discovered new exit (range 24) 43520 | -2/Section 7 | Found Prototype Device 43520 | -2/Section 7 | Identified Exp. EM Disruption Field 43679 | -2/Section 7 | Used Integrity Redistributor, redistributed integrity from core (-327) 43680 | -2/Section 7 | Core integrity fell below 50% 43729 | -2/Section 7 | Destroyed 9 combat bots 43766 | -2/Section 7 | Found Integrated Dissipator 43766 | -2/Section 7 | Installed Integrated Dissipator, increased core heat dissipation (+20) 43944 | -2/Section 7 | Entered Access 43944 | -1/Access | Evolved 2 slots: Power x1, Utility x1 44226 | -1/Access | First assault squad dispatched 44236 | -1/Access | Lost 3 allies 44255 | -1/Access | Build established: Generator-Golem 44341 | -1/Access | Destroyed 8 combat bots 44817 | -1/Access | Destroyed 9 combat bots 45034 | -1/Access | High security lockdown imminent 45065 | -1/Access | Destroyed 8 combat bots 45114 | -1/Access | High security lockdown engaged 45179 | -1/Access | Used Integrity Redistributor, redistributed integrity from core (-326) 45194 | -1/Access | Core integrity fell below 50% 45287 | -1/Access | Emitted hypermatrix ping 45292 | -1/Access | Assembled emerged from beneath the floor 45357 | -1/Access | Garrison activated, responded to threat 45370 | -1/Access | Lost 5 allies 45404 | -1/Access | Spotted Executioner 45407 | -1/Access | Spotted Executioner 45438 | -1/Access | Spotted Executioner 45438 | -1/Access | Spotted Executioner 45445 | -1/Access | Destroyed Executioner 45465 | -1/Access | Spotted Investigator 45479 | -1/Access | Scanned by Researcher 45528 | -1/Access | Core integrity fell below 20% 45539 | -1/Access | Spotted B-99 Colossus 45540 | -1/Access | Used Core Regenerator, restored core integrity (+400) 45551 | -1/Access | Lost 5 parts (1p1u3w) 45620 | -1/Access | Garrison activated, responded to threat 45627 | -1/Access | Spotted Executioner 45627 | -1/Access | Spotted Executioner 45627 | -1/Access | Spotted Striker 45627 | -1/Access | Spotted Striker 45639 | -1/Access | Warped through subspace 45663 | -1/Access | Lost 4 parts (1p2u1w) 45795 | -1/Access | Assembled emerged from beneath the floor 45881 | -1/Access | Used Integrity Redistributor, redistributed integrity to core (+329) 45911 | -1/Access | Assembled emerged from beneath the floor 45938 | -1/Access | Spotted Striker 45940 | -1/Access | Spotted Striker 45946 | -1/Access | Spotted Striker 45950 | -1/Access | Assembled emerged from beneath the floor 45950 | -1/Access | Lost 7 allies 45960 | -1/Access | Destroyed by G-73 Enforcer with Heavy Laser Last Messages --------------- 45952_ Y-72 Warden misfires. 45953_ E-15 Imp destroyed. 45953_ K-01 Serf collects debris. 45954_ as-12152 destroyed. 45954_ K-01 Serf collects debris. 45954_ P-80 Master resets P-80 Master, system corruption cleaned. 45955_ Slug penetrates Y-72 Warden. 45956_ Core Membrane filtered system corruption (1). 45957_ Spacefolded through G-73 Enforcer. 45957_ C-30 ARC bursts open, deploying its payload. 45957_ G-73 Enforcer unfolds itself. 45957_ B-74 Champion unfolds itself. 45957_ G-73 Enforcer unfolds itself. 45957_ M-36 Artificer unfolds itself. 45958_ Spacefolded through G-73 Enforcer. 45959_ Spacefolded through Wall. 45960_ Adv. Recalibrator destroyed. Map ----- +----------------------------------------------------+ | # ##????????????????????????????? | | !# ###???????????????????????????? | | #??????#??????????????????????? | | #?#??#????????????????????????? | | #????##???????????????????????? | | %###################????????????????????????? | | ### #?????????????????????????? | | #### %% ###????????????????????????? | | #### ! % ##?????????????????????????? | | ##?## ! % ###?#??????????????????????? | | ! ##### #?#?#??????????????????????? | | % " #% #??#???????????????????????? | | "%/%// = #???#??????????????????????? | | ###### # ""#??????????????????????????? | | # # = ""###????????????????????????? | | # # #??????????????????????????? | | # # #??????????????????????????? | | ??? # # #??????????????????????????? | | # #########/####??????????????????????????? | | ??# #???????????????????????????? | | ###+## ##??????????????????????????? | | ? #???????????????????????????? | | #?#?????????????????????????? | | " ##??????????????????????????? | | ""? ""% e########????????????????????? | | ? ""? "" g @ +????????????????????? | | "??"?" """""" #????????????????????? | | ?""??" ?"""""" #????????????????????? | | ? ??? ? ?? "" #????????????????????? | | ""???????"" #????????????????????? | | ? ???? ?? ? #????????????????????? | | ?? ?? ???? k +????????????????????? | | ??? ????? A #????????????????????? | | ???#???????#######+## #????????????????????? | | ????????????????? ?# #????????????????????? | | ????????????????? ?# #????????????????????? | | ?????????????????? ?# #????????????????????? | | ????????????????????# #????????????????????? | | ????????????????????# ] #????????????????????? | | ????????????????????# #????????????????????? | | ?????????????????????? ?????????????????????? | | ?????????????????????????????????????????????????? | | ?????????????????????????????????????????????????? | | ?????????????????????????????????????????????????? | | ?????????????????????????????????????????????????? | | ?????????????????????????????????????????????????? | | ?????????????????????????????????????????????????? | | ?????????????????????????????????????????????????? | | ?????????????????????????????????????????????????? | | ?????????????????????????????????????????????????? | +----------------------------------------------------+ Best States ------------- Heat Dissipation 122 Energy Generation 118 Energy Capacity 2850 Matter Stores 425 Matter Capacity 450 Sight Range 23 Robot Scan Range 16 Terrain Scan Range 24 Terrain Scan Density 1010 Jamming Range 16 Cloak Strength 3 Power Amplification 30 Additional Mass Support 20 Corruption Block 14 Armor Coverage 1400 Resistance: KI 30 Resistance: TH 50 Resistance: EX 15 Resistance: EM 100 Resistance: I 15 Resistance: S 15 Resistance: P 15 Core Shielding 30 Power Shielding 90 Weapon Shielding 100 Weapon Cycling 20 Phase Shifting 8 Evasion (%) 50 Targeting Accuracy 20 Core Analysis 8 Armor Integrity Analysis 50 Recoil Reduction 4 Kinecelleration 50 Offensive Hacking 14 Defensive Hacking 16 Item Schematics ----------------- Graviton Cannon | -2/Quarantine | Archive Hvy. Gatling Laser | -2/Quarantine | Archive Enh. Biometal Leg | -2/Quarantine | Archive Exp. Force Field | -2/Quarantine | Archive Hdn. Centrium Wheel | -2/Quarantine | Archive Robot Schematics ------------------ R-10 Processor | -2/Quarantine | Archive Fabricated ------------ Force Field | x2 | -5/Factory Alien Tech Used ----------------- Integrated Reactor Transdimensional Reconstructor Terrabomb Core Reset Matrix Subatomic Replicator Supercharged Integrated Reactor Core Membrane High-powered Transdimensional Reconstructor Spacefold Activator LRC Matter Compressor LRC Insulator Integrated Dissipator Integrity Redistributor Core Regenerator Achievements -------------- All-out Warlord Equal Opportunity Bot Giant Slayer Superinsulated Challenges ------------ None Game ------ Seed MobileGunBiocell Manual? 0 Play Time 06:59:25 Cumulative 283.4 hours Start 2024.08.31 @ 01:40:33 End 2024.09.01 @ 16:09:31 Sessions 17 Manual Loads 0 Difficulty Rogue Special Mode None Game No. 215 Rogue 210 Adventurer 5 Explorer 0 Win Type - Total 6 Types 4/0/2/0/0/0/0/0/0 Lore% 64 Gallery% 83 Achievement% 68 Wizard Run 0 Options --------- Layout 2 ASCII 0 Keyboard 0 Movement Mouse Keybinds 0 Fullscreen 2 Font 24/Smallcaps Map View 50x44 Zoom Use 0% Tactical HUD 1 Map Filters NONE Filters NONE Steam 1 RUN: 9cc79f70-ca23-40fe-9f01-5fc1130332c8